bitfinex/quotes_SOLUSD_20250226
["timestamp","ask_amount","ask_price","bid_price","bid_amount"]
[1740595630365,20.0,133.87,133.7,239.2]
[1740595630562,15.7,133.88,133.7,239.2]
[1740595631057,15.7,133.88,133.7,254.88]
[1740595631263,15.7,133.88,133.7,219.2]
[1740595631482,15.7,133.88,133.7,264.3]
[1740595631783,37.29568863,133.9,133.73,20.0]
[1740595631941,37.29568863,133.9,133.73,219.2]
[1740595632147,20.0,133.87,133.73,219.2]
[1740595632665,20.0,133.88,133.73,219.2]
[1740595632849,74.26623334,133.91,133.73,219.2]
[1740595632850,36.4587,133.91,133.73,219.2]
[1740595633270,58.60623334,133.91,133.73,219.2]
[1740595633565,20.7987,133.91,133.73,219.2]
[1740595634146,37.21315675,133.88,133.73,219.2]
[1740595634347,20.7987,133.91,133.73,219.2]
[1740595634860,20.7987,133.91,133.74,126.06]
[1740595635063,37.88353511,133.96,133.78,20.0]
[1740595635260,37.88353511,133.96,133.78,239.2]
[1740595635478,37.88353511,133.96,133.8,10.1964]
[1740595635771,37.88353511,133.96,133.8,274.4964]
[1740595635966,37.88353511,133.96,133.8,229.3964]
[1740595636365,20.0,133.92,133.8,229.3964]
[1740595636675,20.0,133.92,133.8,345.22]
[1740595637171,102.9,133.92,133.8,208.42]
[1740595637758,53.14526036,133.93,133.8,345.22]
[1740595637967,15.5,133.93,133.8,345.22]
[1740595638259,20.0,133.91,133.8,345.22]
[1740595639459,20.0,133.89,133.8,202.398]
[1740595639652,20.0,133.89,133.8,337.6924079]
[1740595639858,102.9,133.89,133.8,126.02]
[1740595640268,37.29568863,133.9,133.8,171.12]
[1740595640465,37.29568863,133.9,133.8,382.7924079]
[1740595640466,20.0,133.87,133.8,382.7924079]
[1740595640666,20.0,133.86,133.8,382.7924079]
[1740595640873,20.0,133.83,133.71,126.02]
[1740595641077,20.0,133.79,133.72,45.1]
[1740595641394,15.36,133.88,133.72,256.7724079]
[1740595641775,0.03,133.92,133.72,256.7724079]
[1740595641992,20.0,133.91,133.72,256.7724079]
[1740595642283,0.03,133.92,133.73,0.14216157]
[1740595642505,0.03,133.92,133.76,45.1]
[1740595642690,0.03,133.92,133.76,256.7724079]
[1740595642989,20.0,133.89,133.76,256.7724079]
[1740595643192,20.0,133.86,133.76,256.7724079]
[1740595643359,35.34,133.85,133.76,74.8724079]
[1740595643560,35.34,133.85,133.73,74.8724079]
[1740595643561,20.0,133.81,133.73,74.8724079]
[1740595643799,84.86200562,133.84,133.71,200.8924079]
[1740595643800,102.9,133.8,133.71,200.8924079]
[1740595644094,20.0,133.8,133.71,337.6924079]
[1740595644398,20.0,133.82,133.72,45.1]
[1740595644861,20.0,133.82,133.72,256.7724079]
[1740595646084,20.0,133.81,133.72,256.7724079]
[1740595646376,20.0,133.77,133.71,126.02]
[1740595646680,35.34,133.76,133.63,337.6924079]
[1740595646887,35.32,133.75,133.63,337.6924079]
[1740595647395,35.32,133.75,133.64,45.1]
[1740595647596,35.32,133.75,133.64,256.7724079]
[1740595649119,35.32,133.75,133.64,211.6724079]
[1740595649320,35.32,133.75,133.64,74.8724079]
[1740595649529,82.9,133.76,133.64,256.7724079]
[1740595649820,52.73878859,133.76,133.64,256.7724079]
[1740595649991,20.0,133.73,133.64,256.7724079]
[1740595650419,20.0,133.74,133.64,256.7724079]
[1740595650613,20.0,133.73,133.64,256.7724079]
[1740595651111,20.0,133.73,133.64,211.6724079]
[1740595651814,20.0,133.69,133.64,74.8724079]
[1740595652017,102.9,133.68,133.55,126.08]
[1740595652216,20.0,133.64,133.55,337.7524079]
[1740595652385,20.0,133.64,133.55,382.8524079]
[1740595652724,20.7168,133.72,133.55,382.8524079]
[1740595652888,7.5862,133.72,133.55,382.8524079]
[1740595653223,20.0,133.69,133.55,382.8524079]
[1740595654196,20.0,133.68,133.55,382.8524079]
[1740595654429,20.0,133.68,133.55,337.7524079]
[1740595654986,7.5862,133.72,133.55,337.7524079]
[1740595655204,37.58975088,133.71,133.55,337.7524079]
[1740595655401,57.41854884,133.68,133.55,337.7524079]
[1740595655901,37.58975088,133.71,133.55,382.8524079]
[1740595656081,37.58975088,133.71,133.56,0.14216157]
[1740595656288,37.58975088,133.71,133.56,0.56864628]
[1740595656488,37.3998421,133.73,133.59,45.1]
[1740595656693,20.0,133.68,133.6,126.1]
[1740595656929,20.0,133.68,133.6,337.7724079]
[1740595657519,20.0,133.71,133.6,337.7724079]
[1740595658123,15.14,133.74,133.6,382.8724079]
[1740595658697,15.14,133.74,133.6,337.7724079]
[1740595659014,20.0,133.7,133.6,337.7724079]
[1740595659319,20.0,133.69,133.6,337.7724079]
[1740595659900,20.0,133.7,133.6,337.7724079]
[1740595660510,15.14,133.74,133.6,337.7724079]
[1740595660903,20.0,133.7,133.6,337.7724079]
[1740595661208,20.0,133.69,133.6,337.7724079]
[1740595662798,20.0,133.65,133.6,200.9724079]
[1740595663028,20.0,133.61,133.53,211.6724079]
[1740595663192,20.0,133.61,133.55,0.063]
[1740595663626,27.517,133.65,133.55,211.7354079]
[1740595663921,20.0,133.62,133.55,211.7354079]
[1740595664836,20.0,133.61,133.56,45.1]
[1740595665047,20.0,133.61,133.55,74.9354079]
[1740595665323,20.0,133.61,133.55,0.063]
[1740595665528,14.92,133.65,133.55,211.7354079]
[1740595665936,20.0,133.62,133.56,45.1]
[1740595666102,20.0,133.62,133.56,256.7724079]
[1740595666302,20.0,133.62,133.56,211.6724079]
[1740595666815,16.88462709,133.65,133.55,0.063]
[1740595666816,20.0,133.61,133.55,0.063]
[1740595667818,20.0,133.57,133.55,0.063]
[1740595668317,82.9,133.64,133.55,0.063]
[1740595669020,37.0449784,133.62,133.55,0.063]
[1740595669218,20.0,133.56,133.55,0.063]
[1740595669523,20.0,133.55,133.5,0.063]
[1740595669705,20.0,133.54,133.5,0.063]
[1740595670318,104.86621175,133.53,133.5,0.063]
[1740595670615,20.0,133.49,133.48,0.063]
[1740595670995,20.0,133.49,133.47,0.063]
[1740595671198,14.6,133.48,133.47,0.063]
[1740595671905,14.6,133.48,133.42,0.063]
[1740595671906,20.0,133.44,133.42,0.063]
[1740595672220,20.0,133.43,133.42,0.063]
[1740595672416,84.86775492,133.45,133.38,0.063]
[1740595672417,111.1634,133.42,133.38,0.063]
[1740595672720,84.86837726,133.41,133.34,0.063]
[1740595672922,20.0,133.37,133.34,0.063]
[1740595673130,14.56,133.36,133.34,0.063]
[1740595673332,12.4256,133.35,133.34,0.063]
[1740595673502,20.0,133.32,133.25,0.063]
[1740595673699,20.0,133.32,133.25,211.7354079]
[1740595674407,20.0,133.32,133.25,0.063]
[1740595674935,20.0,133.28,133.25,0.063]
[1740595675144,14.54,133.27,133.25,74.9354079]
[1740595675335,14.54,133.27,133.25,0.063]
[1740595676651,14.54,133.27,133.25,74.9354079]
[1740595677623,8.3281,133.31,133.25,211.7354079]
[1740595678253,20.0,133.28,133.25,211.7354079]
[1740595678431,20.0,133.28,133.25,74.9354079]
[1740595678859,20.0,133.28,133.25,22.57812039]
[1740595679427,37.37454252,133.34,133.25,22.57812039]
[1740595679742,14.42,133.35,133.25,159.37812039]
[1740595679920,14.42,133.35,133.25,241.77812039]
[1740595680443,20.0,133.32,133.25,241.77812039]
[1740595680631,14.42,133.35,133.25,241.77812039]
[1740595680839,20.0,133.31,133.25,104.97812039]
[1740595681040,20.0,133.3,133.25,22.57812039]
[1740595681222,20.0,133.29,133.25,22.57812039]
[1740595681742,37.9737256,133.33,133.25,22.57812039]
[1740595681940,1.96977,133.32,133.25,22.57812039]
[1740595682134,3.12159938,133.32,133.25,22.57812039]
[1740595682337,20.0,133.3,133.25,22.57812039]
[1740595682835,37.37454252,133.34,133.25,241.77812039]
[1740595683034,14.42,133.35,133.25,241.77812039]
[1740595683857,14.42,133.35,133.25,215.66547951]
[1740595683858,21.976,133.35,133.25,215.66547951]
[1740595684160,14.42,133.35,133.25,215.66547951]
[1740595684727,14.42,133.35,133.25,82.4]
[1740595684953,20.0,133.32,133.25,82.4]
[1740595685155,20.0,133.3,133.14,342.08547951]
[1740595685362,21.96983893,133.3,133.14,342.08547951]
[1740595685661,13.0632,133.29,133.14,342.08547951]
[1740595685827,57.1520573,133.26,133.14,342.08547951]
[1740595686027,20.0,133.21,133.14,126.42]
[1740595686260,20.0,133.21,133.12,82.463]
[1740595686565,20.0,133.21,133.12,215.72847951]
[1740595687858,14.36,133.25,133.12,260.82847951]
[1740595688042,14.36,133.25,133.12,215.72847951]
[1740595688362,20.0,133.22,133.12,215.72847951]
[1740595688529,20.0,133.22,133.12,0.063]
[1740595689431,59.72782172,133.22,133.12,0.063]
[1740595689742,8.83512938,133.21,133.12,0.063]
[1740595689945,20.0,133.16,133.12,0.063]
[1740595690140,20.0,133.13,133.12,0.063]
[1740595691872,20.0,133.13,133.11,0.03]
[1740595692057,20.0,133.13,133.06,2.3684837]
[1740595692058,20.0,133.12,133.06,2.3684837]
[1740595692265,1.97317512,133.11,133.06,2.3684837]
[1740595692567,20.0,133.07,133.06,2.3684837]
[1740595692791,34.44,133.07,133.06,2.3684837]
[1740595693784,34.44,133.07,132.98,82.463]
[1740595693963,49.10569806,133.07,132.98,0.063]
[1740595694278,49.10569806,133.07,132.85,0.063]
[1740595694279,7.7782,133.06,132.85,0.063]
[1740595694463,58.9923222,133.05,132.85,0.063]
[1740595694777,20.0,132.92,132.85,0.063]
[1740595694993,20.0,132.88,132.85,0.063]
[1740595695287,1.976743,132.87,132.8,2.3684837]
[1740595695485,1.15182938,132.86,132.8,2.3684837]
[1740595695780,51.79073935,132.92,132.8,139.1684837]
[1740595695972,14.7,132.92,132.8,2.3684837]
[1740595696176,20.0,132.88,132.8,2.3684837]
[1740595697377,1.97625569,132.87,132.8,2.3684837]
[1740595697590,21.97625569,132.87,132.8,2.3684837]
[1740595697883,37.84794443,132.88,132.8,2.3684837]
[1740595698085,37.52836769,132.9,132.8,2.3684837]
[1740595698283,37.34884522,132.91,132.8,2.3684837]
[1740595698478,37.34884522,132.91,132.8,221.5684837]
[1740595698682,37.34884522,132.91,132.8,348.2884837]
[1740595699190,20.0,132.88,132.8,348.2884837]
[1740595699674,20.0,132.88,132.8,129.1184837]
[1740595699879,0.063,132.87,132.8,129.1184837]
[1740595700404,0.063,132.87,132.8,348.3184837]
[1740595700874,0.063,132.87,132.8,129.1184837]
[1740595701187,0.063,132.87,132.8,348.3184837]
[1740595703394,0.063,132.87,132.81,0.14216157]
[1740595703573,37.6213382,132.95,132.81,219.2]
[1740595703767,20.0,132.92,132.81,219.2]
[1740595704288,37.6213382,132.95,132.82,67.77216157]
[1740595704466,14.52,132.99,132.82,286.97216157]
[1740595704661,20.0,132.97,132.83,0.42648471]
[1740595704866,37.74154624,133.01,132.86,45.1]
[1740595705066,52.24154624,133.01,132.86,264.3]
[1740595705267,20.0,132.97,132.86,264.3]
[1740595706394,2.0,132.96,132.86,264.3]
[1740595706691,20.0,132.97,132.86,264.3]
[1740595706692,21.0,132.97,132.86,264.3]
[1740595706898,2.0,132.94,132.86,82.4]
[1740595707081,20.0,132.9,132.86,82.4]
[1740595707283,20.0,132.9,132.86,219.2]
[1740595707480,37.30268528,132.98,132.86,82.4]
[1740595707783,37.84110522,133.03,132.87,0.42648471]
[1740595708090,37.5000036,133.04,132.9,45.1]
[1740595708291,21.0,133.03,132.9,127.5]
[1740595708492,1.0,133.04,132.9,127.5]
[1740595708703,52.1081561,133.06,132.9,127.5]
[1740595709070,14.38,133.06,132.91,0.56864628]
[1740595709275,14.38,133.06,132.93,45.1]
[1740595709477,14.38,133.06,132.93,264.3]
[1740595709991,20.0,133.03,132.94,0.42648471]
[1740595710193,1.0,133.09,132.95,45.1]
[1740595710384,37.54506119,133.12,132.99,45.1]
[1740595710699,37.54506119,133.12,132.99,264.3]
[1740595710873,20.0,133.09,132.99,264.3]
[1740595711079,52.49995106,133.14,132.99,264.3]
[1740595711398,20.0,133.11,132.99,264.3]
[1740595711595,38.75511348,133.16,133.03,45.1]
[1740595711779,20.0,133.17,133.05,45.1]
[1740595711985,1.0,133.18,133.05,264.3]
[1740595712294,9.1788,133.24,133.09,45.1]
[1740595712476,37.1520573,133.26,133.13,45.1]
[1740595712678,1.0,133.28,133.13,264.3]
[1740595712879,21.0,133.27,133.13,264.3]
[1740595713083,2.0,133.24,133.13,264.3]
[1740595713289,1.0,133.19,133.13,82.4]
[1740595713490,2.0,133.19,133.13,82.4]
[1740595713695,21.0,133.2,133.13,82.4]
[1740595713890,14.26,133.23,133.13,219.2]
[1740595714282,39.88828101,133.28,133.14,45.1]
[1740595714480,2.0,133.25,133.14,219.2]
[1740595714681,1.0,133.25,133.14,219.2]
[1740595714904,2.0,133.28,133.14,219.2]
[1740595715098,1.063,133.3,133.15,0.42648471]
[1740595715306,0.063,133.3,133.18,0.42648471]
[1740595715481,20.063,133.3,133.18,219.2]
[1740595715802,20.063,133.3,133.19,0.14216157]
[1740595716007,0.063,133.3,133.19,219.2]
[1740595716202,20.063,133.3,133.19,219.2]
[1740595716506,0.063,133.3,133.19,219.2]
[1740595716685,1.0,133.29,133.19,219.2]
[1740595716887,2.063,133.3,133.19,219.2]
[1740595717188,0.063,133.3,133.19,219.2]
[1740595717385,1.0,133.29,133.19,219.2]
[1740595717689,2.0,133.26,133.19,219.2]
[1740595717881,1.0,133.23,133.19,82.2871]
[1740595718077,1.0,133.21,133.16,209.0271]
[1740595718490,2.0,133.21,133.16,209.0271]
[1740595719090,14.18,133.25,133.16,345.8271]
[1740595719289,20.0,133.22,133.16,345.8271]
[1740595719488,14.18,133.25,133.16,345.8271]
[1740595719704,2.063,133.3,133.16,345.8271]
[1740595719904,1.0,133.26,133.16,345.8271]
[1740595720120,21.0,133.28,133.16,345.8271]
[1740595720286,1.063,133.3,133.16,345.8271]
[1740595720491,2.0,133.29,133.16,345.8271]
[1740595720815,22.0,133.28,133.16,345.8271]
[1740595721111,20.0,133.28,133.16,345.8271]
[1740595721306,0.063,133.3,133.17,0.56864628]
[1740595721485,0.063,133.3,133.17,219.65574628]
[1740595721688,0.063,133.3,133.17,219.51358471]
[1740595722314,0.063,133.3,133.21,20.14216157]
[1740595722613,0.063,133.3,133.22,0.14216157]
[1740595722814,0.063,133.3,133.22,219.0871]
[1740595723689,0.063,133.28,133.22,219.0871]
[1740595723930,0.063,133.3,133.23,0.14216157]
[1740595724116,0.063,133.3,133.23,219.51358471]
[1740595724313,14.02,133.4,133.24,0.14216157]
[1740595724494,20.0,133.37,133.26,0.14216157]
[1740595724691,1.0,133.39,133.26,219.0871]
[1740595725002,14.02,133.4,133.27,0.14216157]
[1740595725311,20.0,133.37,133.28,126.58]
[1740595725513,1.0,133.37,133.28,345.6671]
[1740595725812,21.0,133.37,133.28,345.6671]
[1740595725995,1.0,133.38,133.28,345.6671]
[1740595726198,20.0,133.37,133.28,345.6671]
[1740595726612,1.0,133.36,133.28,345.6671]
[1740595726797,2.0,133.35,133.28,345.6671]
[1740595727114,1.0,133.33,133.28,345.6671]
[1740595727316,14.02,133.4,133.28,345.6671]
[1740595727317,1.0,133.31,133.28,208.8671]
[1740595727811,21.0,133.29,133.28,126.58]
[1740595728114,1.0,133.24,133.2,126.54]
[1740595728299,1.0,133.24,133.2,208.8271]
[1740595728506,1.0,133.23,133.2,208.8271]
[1740595728804,1.0,133.25,133.2,208.8271]
[1740595728805,1.0,133.26,133.2,208.8271]
[1740595729110,2.0,133.26,133.2,345.6271]
[1740595729412,20.0,133.29,133.2,345.6271]
[1740595729805,14.88,133.32,133.2,345.6271]
[1740595730190,15.88,133.32,133.2,345.6271]
[1740595730394,1.0,133.31,133.2,345.6271]
[1740595730596,1.0,133.3,133.2,345.6271]
[1740595730797,1.0,133.27,133.2,345.6271]
[1740595731299,20.0,133.29,133.2,345.6271]
[1740595731496,1.0,133.26,133.2,345.6271]
[1740595731910,1.0,133.27,133.2,345.6271]
[1740595732107,1.0,133.24,133.2,345.6271]
[1740595732314,1.0,133.22,133.2,126.54]
[1740595732515,1.0,133.19,133.12,219.0871]
[1740595732696,1.0,133.17,133.1,126.56]
[1740595732901,1.0,133.17,133.1,345.6471]
[1740595733105,1.0,133.18,133.1,345.6471]
[1740595733622,1.0,133.16,133.1,345.6471]
[1740595733818,1.0,133.15,133.1,345.6471]
[1740595734027,1.0,133.14,133.1,208.8471]
[1740595734215,20.0,133.13,133.06,219.1171]
[1740595736723,1.0,133.11,133.06,219.1171]
[1740595736921,1.0,133.1,133.06,82.3171]
[1740595737124,1.0,133.11,133.06,82.3171]
[1740595737125,1.0,133.08,133.06,0.03]
[1740595737325,2.0,133.07,133.06,0.03]
[1740595737815,1.0,133.0,132.97,208.8871]
[1740595738005,2.0,132.99,132.97,126.6]
[1740595738208,1.0,132.99,132.97,126.6]
[1740595738406,1.0,132.98,132.92,219.1171]
[1740595738907,20.0,132.97,132.92,219.1171]
[1740595739520,21.0,132.97,132.92,219.1171]
[1740595740025,20.0,132.97,132.92,219.1171]
[1740595740213,1.0,132.96,132.92,219.1171]
[1740595740414,20.0,132.97,132.92,219.1171]
[1740595740811,1.0,132.94,132.92,0.03]
[1740595741012,2.0,132.93,132.92,0.03]
[1740595741211,1.0,132.94,132.92,0.03]
[1740595741419,1.0,132.95,132.92,0.03]
[1740595741606,20.0,132.96,132.92,219.1171]
[1740595742520,1.0,132.95,132.92,82.3171]
[1740595742721,1.0,132.94,132.92,82.3171]
[1740595742925,2.0,132.93,132.92,0.03]
[1740595743224,21.0,132.93,132.92,0.03]
[1740595743438,20.0,132.93,132.92,0.03]
[1740595743616,21.0,132.93,132.92,0.03]
[1740595743929,22.0,132.93,132.92,0.03]
[1740595744230,21.0,132.93,132.92,0.03]
[1740595744647,1.0,132.96,132.92,219.1171]
[1740595744843,1.0,132.93,132.92,0.03]
[1740595745008,1.0,132.92,132.84,219.0871]
[1740595745529,1.0,132.94,132.84,219.0871]
[1740595745731,22.0,132.96,132.84,219.0871]
[1740595745939,2.0,132.96,132.84,219.0871]
[1740595746136,1.0,132.98,132.85,45.24216157]
[1740595746355,38.74154624,133.01,132.89,0.14216157]
[1740595746638,38.3998596,133.02,132.89,219.22926157]
[1740595746842,1.0,133.01,132.89,219.0871]
[1740595747045,1.0,132.97,132.89,219.0871]
[1740595747453,1.0,133.01,132.89,219.0871]
[1740595747631,1.0,133.05,132.9,127.32864628]
[1740595747832,1.0,133.01,132.9,345.8471]
[1740595748141,1.0,132.98,132.9,345.8471]
[1740595748328,20.0,132.99,132.9,345.8471]
[1740595748714,1.0,132.98,132.9,345.8471]
[1740595748911,1.0,132.97,132.9,345.8471]
[1740595750028,20.0,132.99,132.9,345.8471]
[1740595750225,21.0,132.99,132.9,345.8471]
[1740595750427,1.0,132.96,132.9,345.8471]
[1740595750632,1.0,132.97,132.9,345.8471]
[1740595751130,1.0,132.96,132.9,345.8471]
[1740595751329,1.0,132.95,132.9,345.8471]
[1740595751540,20.0,132.98,132.9,345.8471]
[1740595751730,21.0,132.98,132.9,345.8471]
[1740595751936,13.72,133.02,132.9,345.8471]
[1740595751937,20.0,132.99,132.9,345.8471]
[1740595752162,1.0,132.98,132.9,345.8471]
[1740595752446,13.72,133.02,132.9,390.9471]
[1740595752447,13.58,133.02,132.9,390.9471]
[1740595752655,1.0,133.01,132.9,390.9471]
[1740595752859,20.0,132.99,132.9,390.9471]
[1740595753245,22.0,132.99,132.9,345.8471]
[1740595753560,1.0,132.96,132.9,345.8471]
[1740595753734,1.0,132.94,132.9,345.8471]
[1740595754065,1.0,132.93,132.9,345.8471]
[1740595754224,1.0,132.91,132.9,209.0471]
[1740595754429,22.0,132.91,132.9,209.0471]
[1740595754818,22.0,132.91,132.9,126.76]
[1740595755361,20.0,132.91,132.9,345.8471]
[1740595755923,37.90271928,132.97,132.9,345.8471]
[1740595756125,1.0,132.98,132.9,345.8471]
[1740595756324,1.0,132.97,132.9,345.8471]
[1740595756663,1.0,132.96,132.9,345.8471]
[1740595756941,1.0,132.95,132.9,345.8471]
[1740595757626,21.0,132.91,132.9,209.0471]
[1740595758039,20.0,132.91,132.9,345.8471]
[1740595758340,1.0,132.96,132.9,345.8471]
[1740595758557,1.0,132.94,132.9,345.8471]
[1740595758851,20.0,132.95,132.9,345.8471]
[1740595759159,1.0,132.94,132.9,345.8471]
[1740595759353,20.0,132.95,132.9,345.8471]
[1740595759731,1.0,132.95,132.9,345.8771]
[1740595759937,1.0,133.0,132.9,345.8771]
[1740595760148,1.0,133.03,132.91,0.42648471]
[1740595760342,38.7911561,133.06,132.94,0.14216157]
[1740595760541,0.063,133.06,132.98,20.0]
[1740595760837,0.063,133.06,133.0,0.14216157]
[1740595761447,0.063,133.06,132.99,0.42648471]
[1740595761756,0.063,133.06,133.0,0.14216157]
[1740595762061,37.54506119,133.12,133.03,68.05648471]
[1740595762365,37.54506119,133.12,133.04,126.82]
[1740595762665,38.15980188,133.15,133.05,0.42648471]
[1740595762838,37.75511348,133.16,133.06,0.14216157]
[1740595763045,51.66429585,133.18,133.06,0.14216157]
[1740595763349,14.26,133.18,133.08,0.42648471]
[1740595763548,0.063,133.2,133.09,45.24216157]
[1740595763751,0.063,133.2,133.13,45.52648471]
[1740595763967,0.063,133.2,133.17,0.42648471]
[1740595764150,0.063,133.2,133.18,126.78]
[1740595764480,37.55438902,133.27,133.18,390.9671]
[1740595764655,37.88828101,133.28,133.18,390.9671]
[1740595765042,38.55438902,133.27,133.18,345.8671]
[1740595765249,21.0,133.24,133.18,345.8671]
[1740595765656,11.29932177,133.29,133.18,345.8671]
[1740595765657,1.0,133.28,133.18,345.8671]
[1740595765969,11.29932177,133.29,133.19,0.56864628]
[1740595766171,1.0,133.27,133.19,219.0871]
[1740595766347,21.0,133.26,133.19,219.0871]
[1740595766553,1.0,133.25,133.19,219.0871]
[1740595766782,1.0,133.24,133.19,219.0871]
[1740595766984,1.0,133.27,133.19,219.0871]
[1740595767282,1.0,133.26,133.19,218.9968]
[1740595767501,1.0,133.24,133.19,218.9968]
[1740595768093,1.0,133.25,133.19,218.9968]
[1740595768300,1.0,133.24,133.19,218.9968]
[1740595768503,1.0,133.26,133.19,218.9968]
[1740595768797,2.0,133.26,133.19,218.9968]
[1740595768959,21.0,133.28,133.19,218.9968]
[1740595769167,1.0,133.27,133.19,218.9968]
[1740595769702,1.0,133.24,133.19,218.9968]
[1740595769907,1.0,133.26,133.19,218.9968]
[1740595770106,1.0,133.24,133.19,218.9968]
[1740595770402,1.0,133.22,133.19,218.9968]
[1740595770568,1.0,133.2,133.19,218.9968]
[1740595770770,2.0,133.2,133.19,82.2871]
[1740595770986,1.0,133.19,133.18,126.78]
[1740595771169,1.0,133.16,133.1,126.66]
[1740595771372,1.0,133.15,133.1,345.6568]
[1740595771681,1.0,133.16,133.1,345.6568]
[1740595771996,1.0,133.17,133.1,208.9471]
[1740595771997,1.0,133.11,133.1,208.9471]
[1740595772196,2.0,133.11,133.1,208.9471]
[1740595772506,1.0,133.07,133.05,218.9968]
[1740595772888,1.0,133.06,133.05,82.2871]
[1740595773071,1.0,133.04,133.02,345.6368]
[1740595773267,1.0,133.03,133.02,345.6368]
[1740595773477,1.0,133.04,133.02,345.6368]
[1740595773681,1.0,133.05,133.02,208.9271]
[1740595774082,20.0,133.06,133.02,345.6368]
[1740595774481,13.84,133.09,133.02,345.6368]
[1740595774671,14.84,133.09,133.02,345.6368]
[1740595774875,1.0,133.07,133.02,345.6368]
[1740595775074,13.84,133.09,133.02,345.6368]
[1740595775277,1.0,133.07,133.02,345.6368]
[1740595775681,20.0,133.06,133.02,345.6368]
[1740595776285,1.0,133.04,133.02,345.6368]
[1740595776500,1.0,133.03,133.02,208.9271]
[1740595776678,2.0,133.03,133.02,126.64]
[1740595776884,20.0,133.06,133.02,126.64]
[1740595776885,1.0,133.04,133.02,126.64]
[1740595777083,2.0,133.03,133.02,263.3497]
[1740595777385,1.0,133.03,133.02,126.64]
[1740595777882,2.0,133.0,132.93,345.6968]
[1740595778117,1.0,132.97,132.93,345.6968]
[1740595778571,22.0,132.98,132.93,345.6968]
[1740595778772,20.0,132.98,132.93,345.6968]
[1740595779002,13.76,133.01,132.93,345.6968]
[1740595779611,1.0,133.0,132.93,345.6968]
[1740595779819,1.0,133.02,132.93,345.6968]
[1740595780115,1.0,133.03,132.94,0.14216157]
[1740595780529,2.0,133.03,132.94,219.13896157]
[1740595780690,1.0,133.01,132.94,218.9968]
[1740595781116,1.0,132.98,132.94,218.9968]
[1740595781296,1.0,132.96,132.94,218.9968]
[1740595781494,1.0,132.95,132.94,218.9968]
[1740595781695,1.0,132.96,132.94,218.9968]
[1740595782086,1.0,132.97,132.94,218.9968]
[1740595782326,1.0,132.98,132.94,218.9968]
[1740595782627,1.0,132.99,132.94,218.9968]
[1740595782827,1.0,133.0,132.94,218.9968]
[1740595783121,1.0,133.01,132.94,218.9968]
[1740595783122,1.0,132.99,132.94,218.9968]
[1740595783321,1.0,132.98,132.94,218.9968]
[1740595783709,1.0,132.98,132.94,219.0268]
[1740595784191,95.66,133.07,132.94,219.0268]
[1740595784517,84.87337756,133.06,132.94,219.0268]
[1740595784989,82.9,133.06,132.94,219.0268]
[1740595785187,84.87336548,133.05,132.94,82.3171]